bitfinex/quotes_ETHUSD_20260108
["timestamp","ask_amount","ask_price","bid_price","bid_amount"]
[1767857285371,0.96664968,3120.2,3119.6,0.68498768]
[1767857289379,4.17158767,3120.2,3119.4,0.002]
[1767857289567,0.94961194,3120.1,3119.4,0.002]
[1767857289777,0.94961194,3120.0,3119.4,0.002]
[1767857290591,0.94761195,3120.0,3119.4,0.002]
[1767857291284,0.94761195,3120.0,3119.4,0.92738164]
[1767857291483,0.94761195,3120.0,3119.5,0.4133168]
[1767857291779,0.94961194,3120.2,3119.5,0.4133168]
[1767857291982,0.94961194,3120.2,3119.6,0.92538164]
[1767857292184,5.8769358,3120.5,3119.6,0.92538164]
[1767857292185,0.94961194,3120.4,3119.6,0.92538164]
[1767857292688,0.94961194,3120.4,3119.5,0.4133168]
[1767857293187,0.94961194,3120.3,3119.5,1.33869844]
[1767857293378,0.94961194,3120.2,3119.4,0.92738164]
[1767857294952,4.15463741,3120.1,3119.4,0.92738164]
[1767857295161,0.94961194,3120.1,3119.4,0.92738164]
[1767857296169,0.94961194,3120.1,3119.5,0.92538164]
[1767857297387,0.94961194,3120.1,3119.7,0.002]
[1767857297592,0.001,3119.9,3119.7,0.002]
[1767857299591,0.001,3119.9,3119.4,0.002]
[1767857299592,0.95061194,3119.9,3119.4,0.002]
[1767857299985,0.94961194,3119.8,3119.4,0.002]
[1767857301007,0.94961194,3119.5,3119.0,0.002]
[1767857301294,0.94961194,3119.3,3118.8,0.002]
[1767857302167,0.94961194,3119.5,3118.8,0.002]
[1767857302388,0.94961194,3119.5,3118.8,0.92738164]
[1767857302591,4.99206115,3119.7,3118.8,0.92738164]
[1767857302790,1.95281164,3119.6,3118.8,0.92738164]
[1767857303369,0.94961194,3119.5,3118.8,0.92738164]
[1767857309804,0.94961194,3119.3,3118.8,0.002]
[1767857310100,0.95061194,3119.2,3118.8,0.002]
[1767857310304,0.94861194,3119.2,3118.8,0.002]
[1767857310674,0.94961194,3119.4,3118.8,0.002]
[1767857311403,0.94961194,3119.6,3118.9,0.92538164]
[1767857312705,0.94961194,3119.6,3118.9,4.1316099]
[1767857312874,0.94961194,3119.6,3118.9,0.92538164]
[1767857313275,0.92459427,3119.8,3119.0,0.99505449]
[1767857314702,0.92459427,3119.8,3119.1,4.20110751]
[1767857314881,0.001,3119.9,3119.3,0.99505449]
[1767857316683,0.001,3119.9,3119.3,4.20081879]
[1767857316876,0.001,3119.9,3119.4,0.99505449]
[1767857318805,0.001,3119.9,3119.4,4.20078512]
[1767857319181,0.001,3119.9,3119.5,0.99505449]
[1767857319397,0.92459427,3120.2,3119.6,0.5336562]
[1767857320814,0.92459427,3120.2,3119.6,3.73918735]
[1767857322811,0.92459427,3120.2,3119.6,0.5336562]
[1767857323794,0.92459427,3120.2,3119.6,1.52871069]
[1767857324115,0.92459427,3120.3,3119.6,1.52871069]
[1767857325416,0.92459427,3120.2,3119.6,0.99505449]
[1767857325615,5.96453007,3120.2,3119.4,4.20075251]
[1767857325825,0.92459427,3120.1,3119.4,4.20079145]
[1767857326325,0.92259427,3120.1,3119.4,4.20079145]
[1767857326894,0.92259427,3120.1,3119.4,3.20573696]
[1767857327102,4.04163273,3120.5,3119.1,0.99505449]
[1767857327103,0.92459427,3119.9,3119.1,0.99505449]
[1767857327321,0.92459427,3119.9,3119.2,3.20588286]
[1767857327521,0.92459427,3119.9,3119.3,3.20584739]
[1767857329618,0.92459427,3119.9,3119.3,4.20090188]
[1767857330825,0.92459427,3119.9,3119.2,3.20593353]
[1767857331197,0.92459427,3119.7,3119.0,4.2011749]
[1767857331609,0.92459427,3119.7,3118.9,3.20622139]
[1767857331815,0.92459427,3119.7,3118.8,0.002]
[1767857331816,0.92459427,3119.5,3118.8,0.002]
[1767857332013,0.92459427,3119.3,3118.8,0.002]
[1767857333006,0.92459427,3119.3,3118.8,3.2083579]
[1767857333312,0.92459427,3119.3,3118.8,0.42234124]
[1767857333828,0.92459427,3119.3,3119.1,0.002]
[1767857334025,0.92459427,3119.5,3119.1,0.002]
[1767857337324,0.92459427,3119.4,3119.1,0.002]
[1767857337830,5.96553007,3119.6,3119.1,0.002]
[1767857338130,0.92559427,3119.6,3119.1,0.002]
[1767857338841,0.001,3119.6,3119.1,0.99705449]
[1767857339002,0.001,3119.6,3119.2,0.99505449]
[1767857339844,0.001,3119.6,3119.4,0.99505449]
[1767857340006,0.92459427,3120.2,3119.4,3.20574277]
[1767857340204,0.92459427,3119.4,3119.1,0.002]
[1767857342438,0.96691506,3119.6,3119.1,5.0419358]
[1767857344277,0.96691506,3119.6,3119.2,3.20595024]
[1767857345083,0.96691506,3119.6,3118.8,5.04267546]
[1767857345084,0.93409458,3119.5,3118.8,0.002]
[1767857345777,0.93409458,3119.5,3119.1,0.002]
[1767857345978,1.34806187,3119.4,3119.1,0.002]
[1767857346482,0.93409458,3119.4,3119.1,0.002]
[1767857348681,0.93409458,3119.6,3119.1,0.002]
[1767857351083,3.20549841,3119.7,3119.1,0.002]
[1767857351583,5.04067546,3120.3,3119.1,0.002]
[1767857351584,4.13912005,3120.1,3119.1,0.99866391]
[1767857352270,0.93409458,3120.0,3119.1,0.99866391]
[1767857353050,0.93409458,3120.0,3119.2,0.99666391]
[1767857353251,4.13922627,3120.0,3119.2,0.99666391]
[1767857353746,0.93409458,3120.0,3119.2,0.99666391]
[1767857353946,1.43170703,3120.0,3119.2,0.99666391]
[1767857354468,0.93409458,3120.0,3119.2,0.99666391]
[1767857355009,0.93409458,3120.0,3119.3,0.99666391]
[1767857355311,0.837,3120.2,3119.3,0.99666391]
[1767857355312,0.93409458,3120.2,3119.3,0.99666391]
[1767857355891,0.93409458,3120.2,3119.4,0.99666391]
[1767857356608,0.837,3120.4,3119.4,0.99666391]
[1767857356609,4.97582284,3120.4,3119.4,0.99666391]
[1767857356778,4.97582284,3120.4,3119.6,0.99666391]
[1767857356978,0.93409458,3120.3,3119.6,0.99666391]
[1767857357712,0.001,3119.7,3119.6,0.99666391]
[1767857357883,0.93409458,3120.2,3119.5,0.60373394]
[1767857358083,0.93409458,3120.2,3119.5,3.80936554]
[1767857358925,0.93409458,3120.2,3119.6,0.38093655]
[1767857360092,0.88409458,3120.2,3119.6,0.38093655]
[1767857360297,0.88409458,3120.2,3119.6,3.58646502]
[1767857360739,0.88409458,3120.2,3119.6,0.38093655]
[1767857361292,0.93409458,3120.4,3119.7,0.99666391]
[1767857361498,0.93409458,3120.6,3119.7,1.19479735]
[1767857363515,0.93409458,3120.5,3119.7,1.19479735]
[1767857364015,0.93409458,3120.5,3119.8,0.99666391]
[1767857365132,0.93409458,3120.5,3119.7,0.19813344]
[1767857365425,0.93409458,3120.4,3119.5,3.20556012]
[1767857365988,0.93409458,3120.4,3119.5,4.20222403]
[1767857366622,0.93409458,3120.4,3119.6,3.205538]
[1767857366787,0.93409458,3120.4,3119.6,4.20219228]
[1767857366982,0.93409458,3120.4,3119.6,0.99666391]
[1767857367221,0.93409458,3120.4,3119.7,0.99666391]
[1767857368823,0.93409458,3120.4,3119.8,0.99666391]
[1767857369520,4.13863182,3120.6,3119.8,0.99866391]
[1767857369701,0.001,3120.3,3119.8,0.99866391]
[1767857372926,0.001,3120.3,3119.8,0.90583846]
[1767857373896,0.001,3120.3,3119.8,0.002]
[1767857373897,0.99565187,3120.3,3119.8,0.002]
[1767857379129,0.001,3120.3,3119.8,0.002]
[1767857379437,0.001,3120.3,3119.8,0.90583846]
[1767857381936,0.001,3120.3,3120.1,0.002]
[1767857382102,0.001,3120.3,3120.1,0.00079496]
[1767857389542,0.001,3120.3,3120.1,0.90463342]
[1767857389910,0.99465187,3121.0,3120.1,4.10961878]
[1767857390126,0.99465187,3121.0,3120.3,0.90383846]
[1767857390932,0.563948,3121.1,3120.3,0.90383846]
[1767857391128,1.55859987,3121.1,3120.3,0.90383846]
[1767857392039,0.99465187,3121.0,3120.3,4.10859233]
[1767857392238,0.99465187,3121.0,3120.4,0.41085923]
[1767857393339,0.99465187,3121.3,3120.5,0.90383846]
[1767857393533,0.99465187,3121.2,3120.2,4.10869951]
[1767857393924,0.001,3120.7,3120.2,4.10869951]
[1767857394132,0.001,3120.7,3120.3,0.41094945]
[1767857396021,0.001,3120.7,3120.1,0.00079496]
[1767857396022,0.99565187,3120.7,3120.1,3.20578154]
[1767857396244,0.99565187,3120.7,3120.1,4.10962]
[1767857396421,0.99565187,3120.7,3120.1,3.20578154]
[1767857396844,0.99565187,3120.7,3120.2,3.20489879]
[1767857397048,0.001,3120.7,3120.2,4.10869856]
[1767857397221,0.001,3120.7,3120.3,0.73145149]
[1767857397543,0.001,3120.7,3120.2,0.90383846]
[1767857398151,0.99565187,3120.7,3120.1,0.00079496]
[1767857398455,0.001,3120.7,3120.2,0.90383846]
[1767857398617,0.001,3120.7,3120.2,4.10874478]
[1767857399146,0.001,3120.7,3120.3,0.90383846]
[1767857399351,0.001,3120.7,3120.4,1.63520521]
[1767857400640,0.001,3120.7,3120.5,0.90383846]
[1767857401153,0.837,3121.4,3120.7,0.90383846]
[1767857401154,0.99465187,3121.4,3120.7,0.90383846]
[1767857401957,5.04067546,3122.5,3120.8,0.90383846]
[1767857402253,0.98918343,3122.2,3121.0,0.9293114]
[1767857404374,0.91118623,3121.6,3120.2,0.96734096]
[1767857404530,0.91118623,3120.9,3120.2,0.96734096]
[1767857405420,0.91118623,3120.9,3120.1,0.00079496]
[1767857405421,0.91118623,3120.7,3120.1,0.00079496]
[1767857406026,5.03835832,3121.0,3120.1,0.00079496]
[1767857406027,0.91118623,3120.9,3120.1,0.96813592]
[1767857406347,0.91118623,3120.9,3120.2,0.96734096]
[1767857406741,5.03835832,3121.2,3120.2,0.96734096]
[1767857406944,1.41502206,3121.1,3120.5,5.03835832]
[1767857407147,0.837,3121.5,3120.5,5.03835832]
[1767857407148,0.91118623,3121.4,3120.6,0.96734096]
[1767857407863,3.20352413,3121.6,3120.8,0.96734096]
[1767857407864,0.91118623,3121.6,3120.8,0.96734096]
[1767857408020,0.91118623,3121.8,3120.8,0.96734096]
[1767857408222,0.91118623,3121.8,3120.2,0.06452133]
[1767857408223,0.91118623,3121.8,3121.1,4.17133955]
[1767857408427,0.001,3121.9,3121.2,0.96734096]
[1767857409224,0.91118623,3121.8,3120.9,4.17151304]
[1767857409626,0.91118623,3121.8,3120.9,3.20417208]
[1767857411326,0.91118623,3121.7,3120.8,3.20430658]
[1767857412222,3.2032952,3121.8,3120.7,0.96734096]
[1767857412223,0.91118623,3121.5,3120.7,0.96734096]
[1767857412446,0.91118623,3121.3,3120.3,5.01109243]
[1767857412646,0.91118623,3121.1,3120.3,5.01109243]
[1767857412858,0.91118623,3121.1,3120.3,1.80634096]
[1767857413027,0.91118623,3120.7,3120.1,0.00079496]
[1767857413227,0.91118623,3121.1,3120.1,0.96813592]
[1767857413444,0.59495446,3121.0,3120.2,0.96734096]
[1767857413649,4.11488333,3121.4,3120.5,6.00569928]
[1767857413650,0.91118623,3121.4,3120.5,6.00569928]
[1767857413929,0.91118623,3121.2,3120.2,6.00569928]
[1767857414139,0.91118623,3121.2,3120.2,0.96734096]
[1767857414356,0.91118623,3121.1,3120.2,0.96734096]
[1767857414672,0.91118623,3121.1,3120.2,2.20901576]
[1767857414876,0.91118623,3120.9,3120.1,0.00079496]
[1767857415242,0.91118623,3120.9,3120.2,3.20492276]
[1767857416260,0.91118623,3120.9,3120.1,4.17314422]
[1767857417061,0.91118623,3120.9,3120.1,0.96813592]
[1767857417362,0.41153539,3120.8,3120.4,0.002]
[1767857418059,1.32272162,3120.8,3120.4,0.002]
[1767857418362,0.91118623,3120.7,3120.4,0.002]
[1767857418532,0.91118623,3120.5,3120.1,0.00079496]
[1767857418732,0.59495446,3120.4,3120.1,0.00079496]
[1767857419744,0.91118623,3120.5,3120.1,0.00079496]
[1767857421248,5.94954455,3120.3,3119.8,0.002]
[1767857421455,0.91118623,3120.2,3119.8,0.002]
[1767857422062,0.91118623,3120.0,3119.5,0.002]
[1767857422239,0.59495446,3119.9,3119.5,0.002]
[1767857422442,5.94954455,3119.7,3119.1,0.002]
[1767857422657,0.91118623,3119.7,3119.1,0.002]
[1767857423170,0.59495446,3119.9,3119.3,4.17314807]
[1767857423339,0.91118623,3120.2,3119.3,9.21152184]
[1767857423534,4.11614192,3120.2,3119.3,6.00569928]
[1767857423757,4.11614192,3120.2,3119.3,9.21153684]
[1767857423952,4.11614192,3120.2,3119.1,0.96934096]
[1767857423953,0.91118623,3120.1,3119.1,0.96934096]
[1767857424153,0.91118623,3119.8,3119.1,0.96934096]
[1767857424356,0.59495446,3119.7,3119.1,0.96934096]
[1767857424952,0.91118623,3120.1,3119.2,0.96734096]
[1767857425568,0.91118623,3119.9,3119.2,0.96734096]
[1767857427140,0.91118623,3119.9,3119.1,0.002]
[1767857427758,4.11642007,3119.9,3119.1,0.002]
[1767857427963,0.91118623,3119.9,3119.1,0.002]
[1767857428182,1.50614069,3119.9,3119.1,0.96934096]
[1767857428641,0.59495446,3119.9,3119.2,0.96734096]
[1767857428843,0.91118623,3120.1,3119.2,0.96734096]
[1767857429040,0.91118623,3120.1,3119.3,0.96734096]
[1767857429645,0.91118623,3120.3,3119.6,6.00569928]
[1767857429943,0.91118623,3120.5,3119.7,0.96734096]
[1767857430145,0.91118623,3120.4,3119.7,0.96734096]
[1767857430545,1.32275945,3120.4,3119.7,0.96734096]
[1767857431363,1.32275945,3120.4,3119.7,4.17276703]
[1767857431646,3.76823142,3120.9,3119.7,4.17276703]
[1767857431647,4.67935721,3120.9,3120.0,0.96734096]
[1767857431846,1.47513423,3120.9,3120.1,0.96734096]
[1767857432267,0.563948,3120.9,3120.1,0.96734096]
[1767857433278,0.93643252,3121.1,3120.2,0.93359964]
[1767857433474,0.001,3121.1,3120.4,0.93359964]
[1767857434175,0.001,3121.1,3120.5,0.93359964]
[1767857434576,0.001,3121.1,3120.6,0.93359964]
[1767857436296,0.001,3121.1,3120.7,0.93359964]
[1767857437793,0.93543252,3120.9,3119.9,0.93359964]
[1767857438093,0.93543252,3120.7,3119.9,0.93359964]
[1767857438293,0.93543252,3120.7,3119.9,4.13877186]
[1767857438494,0.93543252,3120.7,3119.9,0.93359964]
[1767857438691,0.93543252,3120.7,3119.9,4.13879556]
[1767857438897,0.001,3121.1,3120.0,0.93359964]
[1767857439192,0.001,3121.1,3120.2,0.99812097]
[1767857440300,0.001,3121.1,3120.4,0.93359964]
[1767857442368,0.001,3121.1,3120.5,7.34282892]
[1767857442593,0.001,3120.8,3120.5,7.34282892]
[1767857442783,0.001,3120.8,3120.5,0.93359964]
[1767857442981,0.001,3120.8,3120.4,3.20466618]
[1767857443198,0.001,3120.8,3120.4,3.61849276]
[1767857443491,0.001,3120.8,3120.4,0.41382658]
[1767857443689,0.001,3120.8,3120.4,3.61853759]
[1767857444068,0.001,3120.8,3120.4,3.61850685]
[1767857445820,0.001,3120.8,3120.5,0.93359964]
[1767857446106,0.001,3121.1,3120.7,0.93359964]
[1767857446272,0.001,3121.1,3120.6,0.45521065]
[1767857447001,0.93643252,3121.1,3120.3,3.20477742]
[1767857447490,0.93643252,3121.1,3120.4,3.20468708]
[1767857447795,0.001,3121.1,3120.5,0.93359964]
[1767857448690,0.001,3121.1,3120.0,3.20506645]
[1767857448691,0.93643252,3121.1,3120.3,0.93359964]
[1767857449376,0.001,3121.1,3120.3,0.93359964]
[1767857449699,0.001,3121.1,3120.5,0.93359964]
[1767857450871,0.93543252,3121.0,3120.4,0.73434452]
[1767857451072,0.93543252,3121.0,3120.5,3.20453579]
[1767857451506,0.93543252,3121.0,3120.4,3.20471662]
[1767857451999,0.93543252,3121.0,3120.1,0.93359964]
[1767857452395,0.93543252,3121.0,3119.8,0.93359964]
[1767857452595,0.93543252,3121.0,3119.6,0.93359964]
[1767857452811,0.93543252,3120.8,3119.3,0.839]
[1767857452982,0.93543252,3120.6,3119.2,3.20588337]
[1767857453512,0.93543252,3120.6,3119.1,0.002]
[1767857453679,0.93543252,3120.0,3119.1,0.002]
[1767857455000,0.93543252,3119.8,3119.1,0.002]
[1767857455998,0.93543252,3120.5,3119.1,0.93559964]
[1767857457074,0.93543252,3120.4,3119.3,0.93359964]
[1767857457402,1.34944358,3120.3,3119.3,0.93359964]
[1767857457706,0.93543252,3120.6,3119.3,0.99812097]
[1767857459279,0.93543252,3120.5,3119.5,0.93359964]
[1767857459481,0.93543252,3120.5,3119.4,3.20574469]
[1767857460206,0.93543252,3120.5,3119.3,3.20581475]
[1767857460414,0.93543252,3120.3,3119.3,3.20581475]
[1767857460600,0.93543252,3120.3,3119.3,8.24593535]
[1767857460797,0.93543252,3120.3,3119.5,5.0401206]
[1767857461007,0.93543252,3120.5,3119.7,5.0401206]
[1767857461513,0.93543252,3120.4,3119.7,5.0401206]
[1767857461712,6.40940884,3120.5,3119.1,0.002]
[1767857461713,0.93543252,3119.8,3119.1,0.002]
[1767857462277,0.94369819,3119.6,3119.1,0.002]
[1767857463510,0.9797125,3119.5,3119.1,0.002]
[1767857466326,0.9797125,3119.4,3119.1,0.002]
[1767857467995,0.9797125,3119.3,3119.1,0.002]
[1767857468200,3.20576728,3119.4,3119.1,0.002]
[1767857468201,0.41854798,3119.2,3119.1,0.002]
[1767857468410,0.9797125,3119.4,3119.1,0.002]
[1767857468883,0.9797125,3119.6,3119.1,0.002]
[1767857469280,0.9797125,3119.8,3119.1,0.002]
[1767857469505,4.18514892,3119.7,3119.1,0.002]
[1767857469815,0.9797125,3119.6,3119.1,0.002]
[1767857470107,0.9797125,3119.4,3119.1,0.002]
[1767857470307,0.9797125,3119.4,3118.8,0.002]
[1767857470507,0.73905853,3119.5,3118.2,0.002]
[1767857470508,0.9797125,3119.2,3118.2,0.002]
[1767857470679,0.837,3119.3,3118.2,0.002]
[1767857470680,0.9797125,3119.1,3118.2,0.002]
[1767857471704,0.9797125,3118.9,3118.2,0.002]
[1767857472016,0.9797125,3118.7,3118.2,0.002]
[1767857474190,0.9797125,3118.6,3118.2,0.002]
[1767857474825,0.9797125,3118.6,3117.8,1e-08]
[1767857474995,0.9797125,3118.6,3117.3,0.002]
[1767857475694,0.9797125,3118.6,3117.3,3.20989913]
[1767857475895,0.9797125,3118.4,3117.4,3.20778232]
[1767857476091,4.18669088,3118.2,3117.3,0.002]
[1767857476296,0.9797125,3118.1,3117.3,0.002]
[1767857478211,0.9797125,3117.9,3117.6,0.002]
[1767857478413,0.9797125,3117.9,3117.3,0.002]
[1767857478607,3.20718409,3118.0,3117.3,0.002]
[1767857478608,0.9797125,3117.7,3117.3,0.002]
[1767857479137,0.9797125,3117.7,3116.8,0.002]
[1767857479335,0.9797125,3117.7,3116.8,0.91457984]
[1767857480229,0.9797125,3117.7,3116.9,6.4165383]
[1767857480840,0.9797125,3117.7,3116.9,4.12080219]
[1767857481021,0.9797125,3117.7,3117.0,0.73311984]
[1767857481223,0.9797125,3117.7,3116.8,3.21038936]
[1767857481612,0.9797125,3117.7,3116.8,6.41880825]
[1767857481813,0.9797125,3117.7,3116.8,3.21038936]
[1767857482014,0.9797125,3117.6,3116.8,0.002]
[1767857483245,0.9797125,3118.1,3116.8,0.91457984]
[1767857483538,0.9797125,3118.1,3117.0,0.91257984]
[1767857484436,0.9797125,3118.1,3117.1,4.12068994]
[1767857484744,0.9797125,3118.1,3117.1,7.32880004]
[1767857485041,0.9797125,3118.1,3117.2,0.91257984]
[1767857486657,0.9797125,3118.4,3117.4,0.91257984]
[1767857486828,0.838,3118.5,3117.6,0.91257984]
[1767857487029,0.9797125,3118.5,3117.6,0.91257984]
[1767857487928,3.20636153,3118.8,3117.6,0.91257984]
[1767857487929,0.9797125,3118.8,3117.6,0.91257984]
[1767857488148,6.46618302,3120.1,3117.6,0.91257984]
[1767857488149,0.9797125,3119.0,3117.6,0.97710117]
[1767857488328,0.9797125,3119.4,3117.9,0.91257984]
[1767857488650,0.9797125,3119.4,3118.3,0.91257984]
[1767857489149,0.563948,3120.6,3118.3,0.91257984]
[1767857489150,0.9797125,3119.7,3118.3,0.97710117]
[1767857489447,0.9797125,3119.7,3118.3,0.91257984]
[1767857490851,0.9797125,3119.5,3118.4,3.2067727]
[1767857491048,0.9797125,3119.4,3118.4,6.73424949]
[1767857491252,0.9797125,3119.4,3118.5,0.91257984]
[1767857491778,0.9797125,3119.7,3118.5,0.97710117]
[1767857491927,0.9797125,3120.1,3118.5,0.97710117]
[1767857493629,0.9122088,3119.9,3118.7,0.93828936]
[1767857493831,0.9122088,3119.7,3118.6,3.20656704]
[1767857494870,0.9122088,3119.7,3118.6,6.41313408]
[1767857495442,0.9122088,3119.7,3118.6,3.20656704]
[1767857495881,0.9122088,3119.7,3118.5,7.3516291]
[1767857496044,0.9122088,3119.6,3118.5,7.3516291]
[1767857496376,0.9122088,3119.5,3118.5,8.08446794]
[1767857498474,0.9122088,3119.5,3118.5,4.87779807]
[1767857498858,0.9122088,3120.1,3118.6,0.93828936]
[1767857499052,0.9122088,3120.0,3118.6,0.93828936]
[1767857500546,0.9122088,3119.8,3118.7,3.20646423]
[1767857500750,0.9122088,3119.6,3118.7,4.01489046]
[1767857500952,0.9122088,3119.6,3118.6,0.93828936]
[1767857501284,0.9122088,3119.6,3118.3,0.93828936]
[1767857501495,0.9122088,3119.6,3118.2,3.20691674]
[1767857501683,0.9122088,3119.6,3117.9,0.93828936]
[1767857501893,0.9122088,3119.4,3117.6,0.84]
[1767857502063,0.9122088,3119.2,3117.9,0.93828936]
[1767857502264,0.9122088,3119.0,3117.9,0.93828936]
[1767857502495,0.9122088,3119.0,3118.2,4.14520149]
[1767857503169,0.001,3119.3,3118.3,0.93828936]
[1767857503368,0.001,3119.3,3118.3,1.00281069]
[1767857504580,0.001,3119.3,3118.5,0.93828936]
[1767857504896,0.001,3119.3,3118.6,0.93828936]
[1767857506995,0.001,3119.3,3118.7,4.14475359]
[1767857507587,0.001,3119.3,3118.7,7.35121782]
[1767857507790,0.001,3119.3,3118.8,0.93828936]
[1767857508577,0.001,3119.3,3118.7,6.41292846]
[1767857508578,0.001,3119.3,3118.7,3.20646423]
[1767857508876,0.9132088,3119.3,3118.4,4.14506206]
[1767857509097,0.9132088,3119.3,3118.5,0.41450621]
[1767857509324,0.9132088,3119.3,3118.5,1.35279557]
[1767857509805,0.9132088,3119.3,3118.5,0.41450621]
[1767857510007,0.9132088,3119.3,3118.3,3.20685853]
[1767857510008,0.9122088,3119.2,3118.3,3.20685853]
[1767857510337,0.9122088,3119.2,3118.3,6.41373407]
[1767857510927,0.9122088,3119.2,3118.2,3.20696142]
[1767857511101,0.9122088,3119.1,3118.0,4.14539965]
[1767857511599,0.9122088,3119.1,3118.2,3.20697657]
[1767857511935,3.20595134,3119.2,3118.2,3.20697657]
[1767857511936,0.9122088,3118.9,3118.2,3.20697657]
[1767857512636,0.9122088,3118.9,3118.0,0.93828936]
[1767857512811,0.9122088,3118.9,3118.2,3.2069141]
[1767857513203,0.9122088,3118.9,3118.1,3.20708073]
[1767857513624,0.9122088,3118.9,3118.1,6.41416196]
[1767857513894,0.9122088,3118.9,3118.1,7.14940709]
[1767857514097,0.9122088,3118.9,3118.1,8.08769645]
[1767857514531,0.001,3118.6,3118.1,8.08769645]
[1767857514730,0.9122088,3118.9,3118.1,7.14940709]
[1767857515235,3.20689159,3119.3,3118.3,3.20687554]
[1767857515236,0.9122088,3119.1,3118.3,3.20687554]
[1767857515603,1.32411676,3119.1,3118.3,3.20687554]
[1767857515812,0.9122088,3119.0,3118.3,3.20687554]
[1767857516198,0.001,3119.3,3118.4,0.93828936]
[1767857516608,0.001,3119.3,3118.4,1.00281069]
[1767857517224,0.001,3119.3,3118.6,0.93828936]
[1767857517425,0.001,3119.3,3118.7,0.73516291]
[1767857518551,0.9122088,3119.7,3118.7,0.73516291]
[1767857519453,0.9122088,3119.7,3118.8,6.41272284]
[1767857519814,0.9122088,3119.7,3118.8,3.20636142]
[1767857520018,0.9122088,3119.7,3118.9,0.40074719]
[1767857520459,0.9122088,3119.7,3118.9,1.33903655]
[1767857520659,3.76852564,3120.6,3119.0,0.93828936]
[1767857520660,0.9122088,3119.9,3119.0,0.93828936]
[1767857520873,0.9122088,3120.3,3119.0,0.93828936]
[1767857521037,0.9122088,3120.3,3118.9,0.46526852]
[1767857521038,0.9122088,3120.3,3119.2,0.93828936]
[1767857521359,3.5814709,3120.5,3119.4,0.93828936]
[1767857521360,0.37685626,3120.5,3119.4,0.93828936]
[1767857521558,0.9122088,3120.6,3119.4,0.93828936]
[1767857522268,0.95186274,3120.5,3119.4,0.93828936]
[1767857523547,0.95186274,3120.5,3119.5,6.41128384]
[1767857524157,0.95286274,3120.8,3119.6,0.97051823]
[1767857524335,0.001,3120.8,3119.8,0.97051823]
[1767857524536,0.001,3120.8,3119.8,1.03503956]
[1767857524735,0.001,3120.8,3120.1,0.97051823]
[1767857525124,0.001,3121.1,3120.3,0.97051823]
[1767857525459,0.001,3121.1,3120.4,3.20471734]
[1767857525637,0.001,3121.1,3120.4,3.93988025]
[1767857527436,0.001,3121.1,3120.4,7.14459759]
[1767857528151,0.001,3121.1,3120.4,8.11511582]
[1767857528454,0.001,3121.1,3120.4,4.91039848]
[1767857530049,0.001,3121.1,3120.4,8.11511582]
[1767857530246,0.001,3121.1,3120.6,0.97051823]
[1767857531161,0.001,3121.1,3120.5,0.40074719]
[1767857531661,0.001,3121.1,3120.6,3.20451195]
[1767857532247,0.001,3121.1,3120.6,6.4090239]
[1767857532454,0.95186274,3121.4,3120.6,6.4090239]
[1767857532664,0.95186274,3121.4,3120.7,0.68097711]
[1767857533643,0.95186274,3121.4,3120.8,3.20430658]
[1767857534879,0.95186274,3121.4,3120.8,6.40861316]
[1767857535328,0.90277039,3121.8,3120.8,7.33779052]
[1767857536137,0.90277039,3121.7,3120.8,4.13348394]
[1767857536337,0.90277039,3121.7,3120.9,0.80188495]
[1767857538057,0.90277039,3121.7,3120.9,4.00604097]
[1767857538642,0.90277039,3121.7,3121.0,5.03470507]
[1767857539242,0.001,3121.1,3121.0,0.92917736]
[1767857539455,0.90277039,3121.8,3121.1,5.96388243]
[1767857540054,0.90277039,3121.8,3121.1,5.03470507]
[1767857540263,0.90277039,3121.8,3121.1,5.42299824]
[1767857540463,0.90277039,3121.8,3121.1,8.62697474]
[1767857540659,0.90277039,3121.8,3121.1,9.5561521]
[1767857541235,3.20301557,3122.1,3121.2,0.92917736]
[1767857541539,0.90277039,3122.0,3121.2,0.92917736]
[1767857542848,0.90277039,3122.0,3121.3,5.96388243]
[1767857543050,0.90277039,3121.9,3121.2,0.68097711]
[1767857543253,0.90277039,3121.9,3120.9,0.92917736]
[1767857543453,0.90277039,3121.9,3120.9,4.13330735]
[1767857544344,0.90277039,3121.9,3121.0,3.2041002]
[1767857544549,0.90277039,3121.9,3121.0,4.13327756]
[1767857544878,0.90277039,3121.9,3121.1,0.41332776]
[1767857545173,0.90277039,3121.8,3120.8,1.76817736]
[1767857545344,0.90277039,3121.8,3120.7,0.002]
[1767857547278,0.90277039,3121.6,3120.7,0.002]
[1767857548344,0.90277039,3121.6,3120.4,0.002]
[1767857548554,0.90277039,3121.4,3120.4,0.002]
[1767857548763,0.90277039,3120.9,3119.4,0.839]
[1767857548994,0.90277039,3121.3,3120.0,0.92917736]
[1767857549259,0.90277039,3121.2,3119.8,4.13451103]
[1767857549553,0.90277039,3121.2,3120.0,0.06452133]
[1767857549871,0.90277039,3121.2,3120.2,0.06452133]
[1767857550171,0.90277039,3121.2,3120.4,0.92917736]
[1767857550381,0.90277039,3121.9,3120.5,0.99369869]
[1767857550545,0.90277039,3121.9,3120.7,0.06452133]
[1767857550952,0.90277039,3121.9,3120.7,0.99369869]
[1767857551256,0.90277039,3121.7,3121.0,0.002]
[1767857551777,0.90377039,3121.7,3121.0,0.002]
[1767857553592,0.001,3121.7,3121.0,0.99571731]
[1767857554981,0.001,3121.7,3121.0,0.002]
[1767857555282,0.9689362,3121.7,3121.0,0.002]
[1767857558584,0.9679362,3121.6,3121.0,0.002]
[1767857559088,0.9679362,3121.5,3121.0,0.002]
[1767857560290,0.9679362,3121.5,3120.6,3.20649415]
[1767857560291,0.9679362,3121.5,3120.6,0.002]
[1767857560679,0.9679362,3121.4,3120.6,0.002]
[1767857561289,0.9689362,3121.7,3120.6,0.99571731]
[1767857561790,0.837,3122.2,3121.4,0.99371731]
[1767857561969,0.9679362,3122.5,3121.4,0.99371731]
[1767857562772,3.2022632,3122.8,3121.5,3.20358801]
[1767857562773,0.9679362,3122.4,3121.5,3.20358801]
[1767857562974,0.9679362,3122.4,3121.6,0.41973053]
[1767857565175,0.9679362,3122.4,3121.6,3.62319785]
[1767857565384,0.9679362,3122.4,3121.6,0.41973053]
[1767857565592,0.9679362,3122.4,3121.6,3.62321541]
[1767857565776,0.9679362,3122.4,3121.6,0.41973053]
[1767857566074,0.9679362,3122.3,3121.2,4.19755249]
[1767857566406,6.4053431,3122.4,3121.2,4.19755249]
[1767857566407,4.1700631,3123.0,3121.7,0.99371731]
[1767857566693,1.49007771,3124.0,3121.7,0.99371731]